[Event "Berliner Meisterschaft 2023"]
[Site "Berlin"]
[Date "2023.04.14"]
[Round "7.1"]
[White "Schmidek, Emil"]
[Black "Baskin, Robert"]
[Result "0-1"]
[TimeControl "90 minutes / 40 moves + 30 minutes + 30 seconds"]
[WhiteTitle "IM"]
[BlackTitle "IM"]
[WhiteFideId "12908150"]
[BlackFideId "24662402"]
[WhiteElo "2433"]
[BlackElo "2442"]

1. d4 {[%clk 01:30:57]} {[%emt 00:00:02]} Nf6 {[%clk 01:27:12]} {[%emt
00:03:49]} 2. c4 {[%clk 01:31:21]} {[%emt 00:00:06]} e6 {[%clk 01:27:31]}
{[%emt 00:00:11]} 3. Nc3 {[%clk 01:31:44]} {[%emt 00:00:07]} Bb4 {[%clk
01:27:53]} {[%emt 00:00:07]} 4. Bd2 {[%clk 01:32:07]} {[%emt 00:00:07]} c5
{[%clk 01:28:04]} {[%emt 00:00:20]} 5. dxc5 {[%clk 01:32:26]} {[%emt 00:00:11]}
O-O {[%clk 01:28:22]} {[%emt 00:00:11]} 6. Nf3 {[%clk 01:31:44]} {[%emt
00:01:12]} Bxc5 {[%clk 01:28:45]} {[%emt 00:00:08]} 7. g3 {[%clk 01:31:53]}
{[%emt 00:00:22]} d5 {[%clk 01:29:00]} {[%emt 00:00:14]} 8. Bg2 {[%clk
01:32:02]} {[%emt 00:00:21]} Nc6 {[%clk 01:28:43]} {[%emt 00:00:47]} 9. O-O
{[%clk 01:32:20]} {[%emt 00:00:12]} d4 {[%clk 01:28:51]} {[%emt 00:00:22]} 10.
Na4 {[%clk 01:32:22]} {[%emt 00:00:29]} Be7 {[%clk 01:29:10]} {[%emt 00:00:10]}
11. e3 {[%clk 01:32:27]} {[%emt 00:00:24]} dxe3 {[%clk 01:29:11]} {[%emt
00:00:30]} 12. Bxe3 {[%clk 01:32:43]} {[%emt 00:00:14]} e5 {[%clk 01:29:32]}
{[%emt 00:00:08]} 13. Qxd8 {[%clk 01:28:55]} {[%emt 00:04:18]} Rxd8 {[%clk
01:29:30]} {[%emt 00:00:32]} 14. b3 {[%clk 01:29:13]} {[%emt 00:00:13]} h6
{[%clk 01:28:46]} {[%emt 00:01:13]} 15. Rfd1 {[%clk 00:56:04]} {[%emt
00:33:39]} Rxd1+ {[%clk 01:27:04]} {[%emt 00:02:12]} 16. Rxd1 {[%clk 00:56:17]}
{[%emt 00:00:17]} e4 {[%clk 01:26:32]} {[%emt 00:01:02]} 17. Nd4 {[%clk
00:43:35]} {[%emt 00:13:12]} Nxd4 {[%clk 01:22:10]} {[%emt 00:04:52]} 18. Bxd4
{[%clk 00:41:47]} {[%emt 00:02:17]} Bg4 {[%clk 01:09:46]} {[%emt 00:12:54]} 19.
Re1 {[%clk 00:33:54]} {[%emt 00:08:24]} Bb4 {[%clk 01:04:53]} {[%emt 00:05:23]}
20. Bc3 {[%clk 00:33:20]} {[%emt 00:01:03]} a5 {[%clk 01:05:15]} {[%emt
00:00:09]} 21. Re3 {[%clk 00:06:34]} {[%emt 00:27:16]} Rd8 {[%clk 01:03:43]}
{[%emt 00:02:01]} 22. h3 {[%emt 00:03:37]} Rd1+ {[%clk 01:00:44]} 23. Kh2
{[%clk 00:07:25]} {[%emt 00:00:01]} Bxc3 {[%clk 00:59:30]} {[%emt 00:01:44]} 24.
Nxc3 {[%clk 00:07:32]} {[%emt 00:00:23]} Rd2 {[%clk 00:59:59]} {[%emt
00:00:01]} 25. hxg4 {[%clk 00:05:03]} {[%emt 00:03:00]} Nxg4+ {[%clk 01:00:24]}
{[%emt 00:00:05]} 26. Kh3 {[%clk 00:01:45]} {[%emt 00:03:48]} Nxe3 {[%clk
00:58:08]} {[%emt 00:02:46]} 27. Nxe4 {[%clk 00:02:05]} {[%emt 00:00:10]} Rxa2
{[%clk 00:57:54]} {[%emt 00:00:44]} 28. fxe3 {[%clk 00:02:34]} {[%emt
00:00:01]} Rb2 {[%clk 00:58:05]} {[%emt 00:00:18]} 29. Nc5 {[%clk 00:00:37]}
{[%emt 00:02:28]} b6 {[%clk 00:58:17]} {[%emt 00:00:19]} 30. Na4 {[%clk
00:01:04]} {[%emt 00:00:03]} Rxb3 {[%clk 00:58:34]} {[%emt 00:00:13]} 31. Bc6
{[%clk 00:01:27]} {[%emt 00:00:06]} Kf8 {[%clk 00:51:21]} {[%emt 00:07:44]} 32.
e4 {[%clk 00:00:58]} {[%emt 00:01:00]} Ke7 {[%clk 00:50:54]} {[%emt 00:00:57]}
33. Bb5 {[%clk 00:01:19]} {[%emt 00:00:09]} Kd6 {[%clk 00:51:01]} {[%emt
00:00:22]} 34. Nxb6 {[%clk 00:01:05]} {[%emt 00:00:44]} Re3 {[%clk 00:45:18]}
{[%emt 00:06:13]} 35. Na4 {[%clk 00:00:37]} {[%emt 00:00:59]} Rxe4 {[%clk
00:44:54]} {[%emt 00:00:53]} 36. Kg2 {[%clk 00:01:00]} {[%emt 00:00:08]} f5
{[%clk 00:41:30]} {[%emt 00:03:54]} 37. Kf3 {[%clk 00:01:01]} {[%emt 00:00:29]}
g5 {[%clk 00:41:39]} {[%emt 00:00:20]} 38. c5+ {[%clk 00:00:37]} {[%emt
00:00:55]} Kd5 {[%clk 00:35:34]} {[%emt 00:06:36]} 39. Bd7 {[%clk 00:00:44]}
{[%emt 00:00:22]} Rb4 {[%clk 00:32:49]} {[%emt 00:03:14]} 40. c6 {[%clk
00:00:33]} {[%emt 00:00:42]} Kd6 {[%clk 00:25:38]} {[%emt 00:07:41]} 41. Nc5
{[%clk 00:29:46]} {[%emt 00:01:16]} a4 {[%clk 00:54:25]} {[%emt 00:01:43]} 42.
Bxf5 {[%clk 00:14:34]} {[%emt 00:15:43]} Kxc6 {[%clk 00:52:03]} {[%emt
00:02:52]} 43. Nd3 {[%clk 00:13:00]} {[%emt 00:02:04]} Rb3 {[%clk 00:44:46]}
{[%emt 00:07:47]} 44. Kg4 {[%clk 00:13:14]} {[%emt 00:00:17]} Kd5 {[%clk
00:42:14]} {[%emt 00:03:01]} 45. Bg6 {[%clk 00:09:58]} {[%emt 00:03:46]} Kd4
{[%clk 00:40:29]} {[%emt 00:02:15]} 46. Nc1 {[%clk 00:10:15]} {[%emt 00:00:12]}
Ra3 {[%clk 00:38:52]} {[%emt 00:02:07]} 47. Bf7 {[%clk 00:07:07]} {[%emt
00:03:38]} Ke3 {[%clk 00:38:45]} {[%emt 00:00:36]} 48. Be6 {[%clk 00:04:38]}
{[%emt 00:03:00]} Kf2 {[%clk 00:37:07]} {[%emt 00:02:08]} 49. Kh5 {[%clk
00:05:01]} {[%emt 00:00:07]} Rxg3 {[%clk 00:35:40]} {[%emt 00:01:57]} 50. Bd7
{[%clk 00:05:03]} {[%emt 00:00:29]} Rc3 {[%clk 00:35:50]} {[%emt 00:00:19]} 51.
Na2 {[%clk 00:05:25]} {[%emt 00:00:09]} Rc4 {[%clk 00:35:57]} {[%emt 00:00:22]}
52. Bb5 {[%clk 00:02:10]} {[%emt 00:03:46]} Rh4+ {[%clk 00:35:44]} {[%emt
00:00:42]} 53. Kg6 {[%clk 00:02:39]} {[%emt 00:00:02]} a3 {[%clk 00:34:25]}
{[%emt 00:01:49]} 54. Nc3 {[%clk 00:00:58]} {[%emt 00:02:11]} Rb4 {[%clk
00:34:40]} {[%emt 00:00:14]} 55. Bd7 {[%clk 00:00:41]} {[%emt 00:00:48]} g4
{[%clk 00:35:02]} {[%emt 00:00:08]} 0-1

[Event "Berliner Meisterschaft 2023"]
[Site "Berlin"]
[Date "2023.04.14"]
[Round "7.2"]
[White "Glek, Igor"]
[Black "Hesse, Henrik"]
[Result "0-1"]
[TimeControl "90 minutes / 40 moves + 30 minutes + 30 seconds"]
[WhiteTitle "GM"]
[WhiteFideId "4100484"]
[BlackFideId "12956465"]
[WhiteElo "2443"]
[BlackElo "2197"]

1. e4 {[%clk 01:29:52]} {[%emt 00:01:08]} e5 {[%clk 01:30:46]} {[%emt
00:00:14]} 2. Nf3 {[%clk 01:21:24]} {[%emt 00:08:57]} Nf6 {[%clk 01:31:08]}
{[%emt 00:00:08]} 3. d3 {[%clk 01:21:33]} {[%emt 00:00:22]} Nc6 {[%clk
01:30:53]} {[%emt 00:00:45]} 4. g3 {[%emt 00:03:49]} Bc5 {[%clk 01:28:16]} 5.
Bg2 {[%clk 01:21:10]} {[%emt 00:00:41]} d6 {[%clk 01:27:47]} {[%emt 00:00:59]}
6. O-O {[%clk 01:21:04]} {[%emt 00:00:36]} O-O {[%clk 01:27:12]} {[%emt
00:01:05]} 7. Nc3 {[%clk 01:12:57]} {[%emt 00:08:38]} a5 {[%clk 01:27:21]}
{[%emt 00:00:21]} 8. h3 {[%clk 01:13:07]} {[%emt 00:00:19]} h6 {[%clk
01:27:28]} {[%emt 00:00:24]} 9. Nh4 {[%clk 01:12:36]} {[%emt 00:01:01]} Nd4
{[%clk 01:22:24]} {[%emt 00:05:34]} 10. Kh2 {[%clk 01:04:31]} {[%emt 00:08:34]}
c6 {[%clk 01:09:23]} {[%emt 00:13:31]} 11. Ne2 {[%clk 01:00:24]} {[%emt
00:04:36]} Re8 {[%clk 01:04:49]} {[%emt 00:05:05]} 12. Nxd4 {[%clk 00:54:43]}
{[%emt 00:06:10]} Bxd4 {[%clk 01:04:56]} {[%emt 00:00:23]} 13. Qf3 {[%clk
00:55:05]} {[%emt 00:00:07]} d5 {[%clk 00:59:18]} {[%emt 00:06:09]} 14. Nf5
{[%clk 00:50:56]} {[%emt 00:04:40]} dxe4 {[%clk 00:59:17]} {[%emt 00:00:30]} 15.
dxe4 {[%clk 00:50:28]} {[%emt 00:00:59]} Bxf5 {[%clk 00:58:41]} {[%emt
00:01:07]} 16. Qxf5 {[%clk 00:50:52]} {[%emt 00:00:05]} Qc8 {[%clk 00:55:51]}
{[%emt 00:03:20]} 17. Qf3 {[%clk 00:37:41]} {[%emt 00:13:41]} Qe6 {[%clk
00:55:38]} {[%emt 00:00:43]} 18. a4 {[%clk 00:37:36]} {[%emt 00:00:35]} Red8
{[%clk 00:43:35]} {[%emt 00:12:34]} 19. Rd1 {[%clk 00:21:55]} {[%emt 00:16:09]}
Bb6 {[%clk 00:30:51]} {[%emt 00:13:16]} 20. Bd2 {[%clk 00:16:53]} {[%emt
00:05:31]} Qc4 {[%clk 00:19:01]} {[%emt 00:12:20]} 21. Bxh6 {[%clk 00:10:35]}
{[%emt 00:06:47]} Qxc2 {[%clk 00:18:38]} {[%emt 00:00:54]} 22. Bg5 {[%clk
00:01:22]} {[%emt 00:09:43]} Qxf2 {[%clk 00:10:31]} {[%emt 00:08:37]} 23. Bxf6
{[%clk 00:00:39]} {[%emt 00:01:12]} Qxf3 {[%clk 00:10:32]} {[%emt 00:00:29]} 24.
Bxf3 {[%clk 00:01:08]} {[%emt 00:00:02]} gxf6 {[%clk 00:09:43]} {[%emt
00:01:19]} 25. Rxd8+ {[%clk 00:01:24]} {[%emt 00:00:14]} Rxd8 {[%clk 00:09:58]}
{[%emt 00:00:15]} 26. Rd1 {[%clk 00:01:52]} {[%emt 00:00:02]} Bd4 {[%clk
00:07:18]} {[%emt 00:03:11]} 27. b3 {[%clk 00:01:47]} {[%emt 00:00:35]} b5
{[%clk 00:07:18]} {[%emt 00:00:30]} 28. h4 {[%clk 00:01:08]} {[%emt 00:01:08]}
Rb8 {[%clk 00:07:11]} {[%emt 00:00:37]} 29. Rc1 {[%clk 00:00:58]} {[%emt
00:00:39]} bxa4 {[%clk 00:05:34]} {[%emt 00:02:08]} 30. bxa4 {[%clk 00:01:27]}
{[%emt 00:00:02]} c5 {[%clk 00:05:53]} {[%emt 00:00:10]} 31. Rc4 {[%clk
00:00:53]} {[%emt 00:01:03]} Rb3 {[%clk 00:05:09]} {[%emt 00:01:16]} 32. Kg2
{[%clk 00:00:59]} {[%emt 00:00:25]} Kf8 {[%clk 00:04:54]} {[%emt 00:00:45]} 33.
Bd1 {[%clk 00:00:46]} {[%emt 00:00:41]} Re3 {[%clk 00:04:55]} {[%emt 00:00:30]}
34. Bf3 {[%clk 00:00:41]} {[%emt 00:00:35]} Ra3 {[%clk 00:03:40]} {[%emt
00:01:45]} 35. Bg4 {[%clk 00:00:47]} {[%emt 00:00:23]} Kg7 {[%clk 00:03:37]}
{[%emt 00:00:34]} 36. Bd1 {[%clk 00:00:50]} {[%emt 00:00:26]} Re3 {[%clk
00:02:29]} {[%emt 00:01:39]} 37. Bf3 {[%clk 00:01:10]} {[%emt 00:00:10]} Kg6
{[%clk 00:02:36]} {[%emt 00:00:23]} 38. g4 {[%clk 00:01:34]} {[%emt 00:00:06]}
Ra3 {[%clk 00:02:09]} {[%emt 00:00:58]} 39. Bd1 {[%clk 00:01:34]} {[%emt
00:00:29]} Ra1 {[%clk 00:01:48]} {[%emt 00:00:51]} 40. Bf3 {[%clk 00:01:46]}
{[%emt 00:00:17]} Ra2+ {[%clk 00:02:04]} {[%emt 00:00:15]} 41. Kh3 {[%clk
00:30:00]} {[%emt 00:01:46]} Be3 {[%clk 00:29:27]} {[%emt 00:03:07]} 42. g5
{[%clk 00:16:27]} {[%emt 00:14:33]} fxg5 {[%clk 00:28:36]} {[%emt 00:01:21]} 43.
Kg4 {[%clk 00:16:44]} {[%emt 00:00:12]} gxh4 {[%clk 00:17:03]} {[%emt
00:12:03]} 44. Kxh4 {[%clk 00:17:13]} {[%emt 00:00:01]} f5 {[%clk 00:16:55]}
{[%emt 00:00:39]} 45. exf5+ {[%clk 00:17:15]} {[%emt 00:00:28]} Kxf5 {[%clk
00:17:20]} {[%emt 00:00:06]} 46. Be4+ {[%clk 00:17:12]} {[%emt 00:00:31]} Ke6
{[%clk 00:16:54]} {[%emt 00:00:56]} 47. Kg3 {[%clk 00:17:16]} {[%emt 00:00:26]}
Bd4 {[%clk 00:16:10]} {[%emt 00:01:15]} 48. Bh7 {[%clk 00:11:01]} {[%emt
00:06:45]} Kd5 {[%clk 00:05:46]} {[%emt 00:10:54]} 49. Bg8+ {[%clk 00:11:05]}
{[%emt 00:00:26]} Ke4 {[%clk 00:06:11]} {[%emt 00:00:05]} 50. Rxd4+ {[%clk
00:09:01]} {[%emt 00:02:34]} exd4 {[%clk 00:04:18]} {[%emt 00:02:23]} 51. Bxa2
{[%clk 00:09:27]} {[%emt 00:00:03]} Ke3 {[%clk 00:03:34]} {[%emt 00:01:14]} 52.
Kg2 {[%clk 00:09:35]} {[%emt 00:00:22]} d3 {[%clk 00:03:09]} {[%emt 00:00:55]}
53. Kf1 {[%clk 00:10:01]} {[%emt 00:00:05]} d2 {[%clk 00:03:17]} {[%emt
00:00:21]} 54. Bb3 {[%clk 00:10:26]} {[%emt 00:00:05]} c4 {[%clk 00:03:31]}
{[%emt 00:00:16]} 55. Bd1 {[%clk 00:08:55]} {[%emt 00:02:01]} Kd3 {[%clk
00:03:52]} {[%emt 00:00:09]} 56. Bh5 {[%clk 00:07:18]} {[%emt 00:02:07]} Kc2
{[%clk 00:04:09]} {[%emt 00:00:12]} 0-1

[Event "Berliner Meisterschaft 2023"]
[Site "Berlin"]
[Date "2023.04.14"]
[Round "7.3"]
[White "Lagunow, Alexander"]
[Black "Lagunow, Raphael"]
[Result "1/2-1/2"]
[TimeControl "90 minutes / 40 moves + 30 minutes + 30 seconds"]
[WhiteTitle "IM"]
[BlackTitle "IM"]
[WhiteFideId "4616049"]
[BlackFideId "246552644"]
[WhiteElo "2341"]
[BlackElo "2410"]

1. Nf3 {[%clk 01:30:56]} {[%emt 00:00:03]} Nf6 {[%clk 01:27:26]} {[%emt
00:03:34]} 2. c4 {[%clk 01:31:14]} {[%emt 00:00:12]} e6 {[%clk 01:27:32]}
{[%emt 00:00:24]} 3. g3 {[%clk 01:31:26]} {[%emt 00:00:18]} b6 {[%clk
01:27:47]} {[%emt 00:00:16]} 4. Bg2 {[%clk 01:31:48]} {[%emt 00:00:08]} Bb7
{[%clk 01:27:58]} {[%emt 00:00:19]} 5. O-O {[%clk 01:32:05]} {[%emt 00:00:13]}
Be7 {[%clk 01:28:14]} {[%emt 00:00:13]} 6. d4 {[%clk 01:32:20]} {[%emt
00:00:15]} O-O {[%clk 01:28:16]} {[%emt 00:00:28]} 7. Nc3 {[%clk 01:32:38]}
{[%emt 00:00:11]} Ne4 {[%clk 01:28:29]} {[%emt 00:00:17]} 8. Bd2 {[%clk
01:32:49]} {[%emt 00:00:19]} Bf6 {[%clk 01:28:23]} {[%emt 00:00:36]} 9. Rc1
{[%clk 01:32:59]} {[%emt 00:00:20]} c5 {[%clk 01:28:31]} {[%emt 00:00:22]} 10.
d5 {[%clk 01:32:58]} {[%emt 00:00:32]} exd5 {[%clk 01:28:41]} {[%emt 00:00:20]}
11. cxd5 {[%clk 01:33:21]} {[%emt 00:00:07]} Nxd2 {[%clk 01:28:45]} {[%emt
00:00:25]} 12. Nxd2 {[%clk 01:33:22]} {[%emt 00:00:30]} d6 {[%clk 01:28:38]}
{[%emt 00:00:37]} 13. Nde4 {[%clk 01:33:33]} {[%emt 00:00:18]} Be5 {[%clk
01:28:53]} {[%emt 00:00:15]} 14. Qd2 {[%clk 01:33:41]} {[%emt 00:00:22]} Ba6
{[%clk 01:28:22]} {[%emt 00:01:02]} 15. Rfe1 {[%clk 01:33:40]} {[%emt
00:00:31]} g6 {[%clk 01:28:36]} {[%emt 00:00:15]} 16. Qh6 {[%clk 01:33:44]}
{[%emt 00:00:26]} Bg7 {[%clk 01:28:53]} {[%emt 00:00:14]} 17. Qf4 {[%clk
01:33:57]} {[%emt 00:00:16]} Be5 {[%clk 01:29:16]} {[%emt 00:00:07]} 18. Qh6
{[%clk 01:34:15]} {[%emt 00:00:12]} Bg7 {[%clk 01:29:38]} {[%emt 00:00:08]} 19.
Qf4 {[%clk 01:34:38]} {[%emt 00:00:07]} Be5 {[%clk 01:30:02]} {[%emt 00:00:06]}
20. Qh6 {[%clk 01:35:00]} {[%emt 00:00:08]} Bg7 {[%clk 01:30:23]} {[%emt
00:00:09]} 1/2-1/2

[Event "Berliner Meisterschaft 2023"]
[Site "Berlin"]
[Date "2023.04.14"]
[Round "7.4"]
[White "Bruedigam, Martin"]
[Black "Poltorak, Sebastian"]
[Result "1-0"]
[TimeControl "90 minutes / 40 moves + 30 minutes + 30 seconds"]
[WhiteTitle "IM"]
[BlackTitle "FM"]
[WhiteFideId "24608033"]
[BlackFideId "1199498"]
[WhiteElo "2378"]
[BlackElo "2368"]

1. d4 {[%clk 01:30:54]} {[%emt 00:00:05]} Nf6 {[%clk 01:30:53]} {[%emt
00:00:07]} 2. Nf3 {[%clk 01:31:18]} {[%emt 00:00:06]} e6 {[%clk 01:31:03]}
{[%emt 00:00:21]} 3. c4 {[%clk 01:30:11]} {[%emt 00:01:37]} Bb4+ {[%clk
01:31:28]} {[%emt 00:00:05]} 4. Bd2 {[%clk 01:28:04]} {[%emt 00:02:37]} Qe7
{[%clk 01:31:50]} {[%emt 00:00:08]} 5. Nc3 {[%clk 01:21:43]} {[%emt 00:06:50]}
c5 {[%clk 01:23:53]} {[%emt 00:08:27]} 6. e3 {[%clk 01:14:44]} {[%emt
00:07:30]} cxd4 {[%clk 01:17:47]} {[%emt 00:06:35]} 7. exd4 {[%clk 01:13:16]}
{[%emt 00:01:58]} Nc6 {[%clk 01:16:19]} {[%emt 00:01:58]} 8. Bd3 {[%clk
01:11:23]} {[%emt 00:02:22]} d5 {[%clk 01:15:04]} {[%emt 00:01:46]} 9. O-O
{[%clk 01:11:23]} {[%emt 00:00:29]} dxc4 {[%clk 00:59:32]} {[%emt 00:16:03]} 10.
Bxc4 {[%clk 01:11:09]} {[%emt 00:00:44]} Bxc3 {[%clk 00:51:40]} {[%emt
00:08:23]} 11. bxc3 {[%clk 01:02:18]} {[%emt 00:09:20]} Ne4 {[%clk 00:51:02]}
{[%emt 00:01:08]} 12. Bc1 {[%clk 00:48:32]} {[%emt 00:14:16]} O-O {[%clk
00:50:56]} {[%emt 00:00:36]} 13. Re1 {[%clk 00:41:56]} {[%emt 00:07:07]} Nf6
{[%clk 00:46:12]} {[%emt 00:05:13]} 14. Bg5 {[%clk 00:41:31]} {[%emt 00:00:55]}
Qc7 {[%clk 00:40:41]} {[%emt 00:06:02]} 15. Bd3 {[%clk 00:37:25]} {[%emt
00:04:35]} Ne7 {[%clk 00:20:41]} {[%emt 00:20:30]} 16. Ne5 {[%clk 00:34:42]}
{[%emt 00:03:12]} Ng6 {[%clk 00:19:03]} {[%emt 00:02:09]} 17. Re3 {[%clk
00:33:42]} {[%emt 00:01:31]} Nd7 {[%clk 00:13:22]} {[%emt 00:06:11]} 18. Qh5
{[%clk 00:23:18]} {[%emt 00:10:54]} Ndxe5 {[%clk 00:12:40]} {[%emt 00:01:12]}
19. dxe5 {[%clk 00:21:05]} {[%emt 00:02:43]} h6 {[%clk 00:02:46]} {[%emt
00:10:25]} 20. Bxh6 {[%clk 00:20:45]} {[%emt 00:00:50]} gxh6 {[%clk 00:03:09]}
{[%emt 00:00:07]} 21. Rg3 {[%clk 00:20:12]} {[%emt 00:01:02]} Qxc3 {[%clk
00:00:33]} {[%emt 00:03:07]} 22. Rxg6+ {[%clk 00:20:30]} {[%emt 00:00:12]} fxg6
{[%clk 00:00:59]} {[%emt 00:00:03]} 23. Qxg6+ {[%clk 00:20:53]} {[%emt
00:00:07]} Kh8 {[%clk 00:01:22]} {[%emt 00:00:07]} 24. Qh7# {[%clk 00:20:22]}
{[%emt 00:00:03]} 1-0

[Event "Berliner Meisterschaft 2023"]
[Site "Berlin"]
[Date "2023.04.14"]
[Round "7.5"]
[White "Glantz, Robert"]
[Black "Strache, Micheal"]
[Result "1-0"]
[TimeControl "90 minutes / 40 moves + 30 minutes + 30 seconds"]
[WhiteTitle "FM"]
[WhiteFideId "24629596"]
[BlackFideId "4693183"]
[WhiteElo "2360"]
[BlackElo "2287"]

1. e4 {[%clk 01:29:05]} {[%emt 00:01:54]} e5 {[%clk 01:30:41]} {[%emt
00:00:20]} 2. Nf3 {[%clk 01:29:18]} {[%emt 00:00:16]} Nc6 {[%clk 01:31:08]}
{[%emt 00:00:05]} 3. Bc4 {[%clk 01:29:20]} {[%emt 00:00:27]} Nf6 {[%clk
01:31:20]} {[%emt 00:00:19]} 4. d3 {[%clk 01:29:06]} {[%emt 00:00:43]} h6
{[%clk 01:28:19]} {[%emt 00:03:31]} 5. O-O {[%clk 01:27:45]} {[%emt 00:01:50]}
d6 {[%clk 01:28:37]} {[%emt 00:00:13]} 6. Re1 {[%clk 01:15:16]} {[%emt
00:12:59]} g6 {[%clk 01:27:56]} {[%emt 00:01:11]} 7. d4 {[%clk 01:11:33]}
{[%emt 00:04:13]} Bg4 {[%clk 01:23:15]} {[%emt 00:05:11]} 8. Bb5 {[%clk
01:03:48]} {[%emt 00:08:15]} Nd7 {[%clk 01:17:35]} {[%emt 00:06:10]} 9. c3
{[%clk 00:53:56]} {[%emt 00:10:21]} Bg7 {[%clk 01:15:10]} {[%emt 00:02:55]} 10.
Bxc6 {[%clk 00:48:24]} {[%emt 00:06:02]} bxc6 {[%clk 01:13:32]} {[%emt
00:02:08]} 11. Be3 {[%clk 00:48:45]} {[%emt 00:00:09]} Rb8 {[%clk 01:09:00]}
{[%emt 00:05:03]} 12. Nbd2 {[%clk 00:44:26]} {[%emt 00:04:48]} O-O {[%clk
01:05:46]} {[%emt 00:03:44]} 13. h3 {[%clk 00:32:58]} {[%emt 00:11:58]} exd4
{[%clk 00:38:31]} {[%emt 00:27:45]} 14. cxd4 {[%clk 00:32:54]} {[%emt
00:00:34]} Be6 {[%clk 00:38:58]} {[%emt 00:00:04]} 15. Nb3 {[%clk 00:29:47]}
{[%emt 00:03:37]} d5 {[%clk 00:38:07]} {[%emt 00:01:21]} 16. e5 {[%clk
00:24:22]} {[%emt 00:05:55]} Kh7 {[%clk 00:36:46]} {[%emt 00:01:51]} 17. Qd2
{[%clk 00:20:27]} {[%emt 00:04:25]} Nb6 {[%clk 00:35:56]} {[%emt 00:01:21]} 18.
Qc3 {[%clk 00:15:26]} {[%emt 00:05:31]} Nc4 {[%clk 00:33:59]} {[%emt 00:02:26]}
19. Bc1 {[%clk 00:15:39]} {[%emt 00:00:16]} Nb6 {[%clk 00:18:13]} {[%emt
00:16:16]} 20. Na5 {[%clk 00:12:58]} {[%emt 00:03:12]} Qe8 {[%clk 00:17:29]}
{[%emt 00:01:14]} 21. Qxc6 {[%clk 00:12:22]} {[%emt 00:01:06]} Nc4 {[%clk
00:16:09]} {[%emt 00:01:50]} 22. Qxe8 {[%clk 00:10:05]} {[%emt 00:02:46]} Rfxe8
{[%clk 00:16:36]} {[%emt 00:00:04]} 23. Nb3 {[%clk 00:10:01]} {[%emt 00:00:34]}
a5 {[%clk 00:16:44]} {[%emt 00:00:23]} 24. Re2 {[%clk 00:10:08]} {[%emt
00:00:22]} Bf8 {[%clk 00:16:21]} {[%emt 00:00:53]} 25. Nc5 {[%clk 00:09:20]}
{[%emt 00:01:17]} Bxc5 {[%clk 00:15:44]} {[%emt 00:01:07]} 26. dxc5 {[%clk
00:09:49]} {[%emt 00:00:01]} a4 {[%clk 00:16:10]} {[%emt 00:00:05]} 27. Nd4
{[%clk 00:07:32]} {[%emt 00:02:46]} Bf5 {[%clk 00:14:45]} {[%emt 00:01:55]} 28.
b3 {[%clk 00:07:16]} {[%emt 00:00:46]} Nxe5 {[%clk 00:13:42]} {[%emt 00:01:34]}
29. Bf4 {[%clk 00:05:03]} {[%emt 00:02:43]} f6 {[%clk 00:07:44]} {[%emt
00:06:28]} 30. Rae1 {[%clk 00:03:48]} {[%emt 00:01:44]} axb3 {[%clk 00:06:04]}
{[%emt 00:02:10]} 31. Nxb3 {[%clk 00:02:32]} {[%emt 00:01:45]} Be4 {[%clk
00:03:04]} {[%emt 00:03:31]} 32. Bxe5 {[%clk 00:02:27]} {[%emt 00:00:34]} Rxe5
{[%clk 00:02:57]} {[%emt 00:00:37]} 33. f3 {[%clk 00:02:42]} {[%emt 00:00:14]}
Bc2 {[%clk 00:03:18]} {[%emt 00:00:10]} 34. Rxe5 {[%clk 00:02:16]} {[%emt
00:00:56]} fxe5 {[%clk 00:03:43]} {[%emt 00:00:05]} 35. Rxe5 {[%clk 00:02:20]}
{[%emt 00:00:26]} Bb1 {[%clk 00:02:04]} {[%emt 00:02:09]} 36. Rxd5 {[%clk
00:01:49]} {[%emt 00:01:00]} Bxa2 {[%clk 00:02:28]} {[%emt 00:00:06]} 37. Rd7+
{[%clk 00:02:14]} {[%emt 00:00:04]} Kg8 {[%clk 00:02:45]} {[%emt 00:00:13]} 38.
Nd4 {[%clk 00:01:40]} {[%emt 00:01:04]} Rb1+ {[%clk 00:02:05]} {[%emt
00:01:10]} 39. Kh2 {[%clk 00:01:03]} {[%emt 00:01:07]} Rd1 {[%clk 00:02:22]}
{[%emt 00:00:13]} 40. c6 {[%clk 00:00:54]} {[%emt 00:00:39]} Bf7 {[%clk
00:02:07]} {[%emt 00:00:45]} 41. Nf5 {[%clk 00:27:07]} {[%emt 00:04:17]} 1-0